[Event "94th FRA-ch Accession 2019"]
[Site "Chartres"]
[Date "2019.08.24"]
[Round "8.3"]
[White "Housieaux, David"]
[Black "Velten, Paul"]
[Result "1/2-1/2"]
[ECO "A29"]
[WhiteElo "2402"]
[BlackElo "2527"]
[Annotator "ChessBase"]
[PlyCount "102"]
[EventDate "2019.08.17"]
[EventType "swiss"]
[EventCountry "FRA"]
[SourceTitle "playchess.com"]
[Source "ChessBase"]
[SourceQuality "1"]
[TimeControl "40/5400+30:1800+30"]

1. c4 {[%emt 0:00:00]} e5 {[%emt 0:01:48]} 2. g3 {[%emt 0:00:00]} Nc6 {[%emt 0:01:42]} 3. Nc3 {[%emt 0:00:12]} Nf6 {[%emt 0:01:28]} 4. Bg2 {[%emt 0:00:09]} Bc5 {[%emt 0:03:20]} 5. Nf3 {[%emt 0:03:36]} d6 {[%emt 0:01:09]} 6. O-O {[%emt 0:00:28]} O-O {[%emt 0:00:32]} 7. d3 {[%emt 0:00:11]} h6 {[%emt 0:00:17]} 8. a3 {[%emt 0:00:53]} a6 {[%emt 0:00:47]} 9. b4 {[%emt 0:01:44]} Ba7 {[%emt 0:00:19]} 10. Bb2 {[%emt 0:00:56]} Be6 {[%emt 0:01:13]} 11. e3 {[%emt 0:00:36]} Qd7 {[%emt 0:01:41]} 12. Rc1 {[%emt 0:00:46]} Bh3 {[%emt 0:00:22]} 13. d4 {[%emt 0:00:55]} exd4 {[%emt 0:04:44]} 14. Nd5 {[%emt 0:00:08]} Nxd5 {[%emt 0:02:29]} 15. Bxh3 {[%emt 0:00:05]} Qxh3 {[%emt 0:00:12]} 16. cxd5 {[%emt 0:00:09]} Ne5 {[%emt 0:15:50]} 17. Nxe5 {[%emt 0:16:25]} dxe5 {[%emt 0:00:32]} 18. exd4 {[%emt 0:00:08]} e4 {[%emt 0:00:31]} 19. Rxc7 {[%emt 0:00:41]} Qf5 {[%emt 0:01:51]} 20. Qb3 {[%emt 0:03:42]} Rab8 {[%emt 0:01:44]} 21. b5 {[%emt 0:16:06]} axb5 {[%emt 0:11:50]} 22. Qxb5 {[%emt 0:00:50]} Rfd8 {[%emt 0:01:50]} 23. Rxb7 {[%emt 0:01:23]} Rxb7 {[%emt 0:02:03]} 24. Qxb7 {[%emt 0:00:06]} Rb8 {[%emt 0:02:12]} 25. Qxa7 {[%emt 0:00:32]} Rxb2 {[%emt 0:00:06]} 26. Qe7 {[%emt 0:05:49]} Qxd5 {[%emt 0:00:41]} 27. Re1 {[%emt 0:01:02]} f5 {[%emt 0:00:16]} 28. Rc1 {[%emt 0:00:21]} Kh7 {[%emt 0:00:55]} 29. Qc5 {[%emt 0:15:12]} Qf7 {[%emt 0:00:53]} 30. h3 {[%emt 0:31:55]} Rb3 {[%emt 0:07:48]} 31. Rc3 {[%emt 0:00:00]} Rb1+ {[%emt 0:34:25]} 32. Kg2 {[%emt 0:00:00]} Rd1 {[%emt 0:00:00]} 33. Qe5 {[%emt 0:00:00]} Qf6 {[%emt 0:00:00]} 34. Rc5 Qxe5 {[%emt 0:00:00]} 35. dxe5 {[%emt 0:00:00]} Kg6 {[%emt 0:02:00]} 36. e6 {[%emt 0:00:00]} Kf6 {[%emt 0:00:00]} 37. e7 {[%emt 0:01:30]} Kxe7 {[%emt 0:00:00]} 38. Rxf5 {[%emt 0:00:00]} Ra1 {[%emt 0:00:00]} 39. Ra5 {[%emt 0:00:11]} Kf6 {[%emt 0:00:00]} 40. g4 {[%emt 0:00:14]} g5 {[%emt 0:00:00]} 41. Ra6+ {[%emt 0:32:28]} Kg7 {[%emt 0:09:13]} 42. Ra8 {[%emt 0:00:00]} Kh7 {[%emt 0:00:00]} 43. Ra4 {[%emt 0:00:00]} Kg7 {[%emt 0:00:00]} 44. h4 {[%emt 0:02:37]} gxh4 {[%emt 0:00:00]} 45. Rxe4 {[%emt 0:00:00]} Rxa3 {[%emt 0:00:00]} 46. Re3 {[%emt 0:00:00]} Rxe3 {[%emt 0:00:00]} 47. fxe3 {[%emt 0:00:00]} h5 {[%emt 0:00:00]} 48. Kh3 {[%emt 0:00:00]} hxg4+ {[%emt 0:00:00]} 49. Kxh4 {[%emt 0:00:00]} Kf6 {[%emt 0:00:00]} 50. Kxg4 {[%emt 0:00:00]} Ke5 {[%emt 0:00:00]} 51. e4 {[%emt 0:00:00]} Kxe4 {[%emt 0:00:00]} 1/2-1/2

[Event "94th FRA-ch Accession 2019"]
[Site "Chartres"]
[Date "2019.08.24"]
[Round "8.4"]
[White "Philippe, Guillaume"]
[Black "Joie, Sebastien"]
[Result "1/2-1/2"]
[ECO "C44"]
[WhiteElo "2321"]
[BlackElo "2413"]
[Annotator "NA"]
[PlyCount "160"]
[EventDate "2019.08.17"]
[EventType "swiss"]
[EventCountry "FRA"]
[SourceTitle "playchess.com"]
[Source "ChessBase"]
[SourceQuality "1"]
[TimeControl "40/5400+30:1800+30"]

1. e4 {[%emt 0:00:00]} e5 {[%emt 0:00:00]} 2. Nf3 {[%emt 0:00:00]} Nc6 {[%emt 0:00:00]} 3. Be2 {[%emt 0:00:00]} Nf6 {[%emt 0:00:00]} 4. d3 {[%emt 0:00:17]} d5 {[%emt 0:00:00]} 5. Nbd2 {[%emt 0:00:14]} g5 {[%emt 0:00:00]} 6. O-O {[%emt 0:15:05]} g4 {[%emt 0:05:53]} 7. Ne1 {[%emt 0:00:09]} Bc5 {[%emt 0:01:53]} 8. c3 {[%emt 0:00:46]} h5 {[%emt 0:04:53]} 9. Nb3 {[%emt 0:11:00]} Bb6 {[%emt 0:00:50]} 10. exd5 {[%emt 0:00:19]} Qxd5 {[%emt 0:03:38]} 11. Be3 {[%emt 0:00:22]} Qd6 {[%emt 0:05:27]} 12. Nc2 {[%emt 0:17:15]} Be6 {[%emt 0:07:15]} 13. c4 {[%emt 0:03:12]} Bd4 {[%emt 0:01:33]} 14. Nbxd4 {[%emt 0:02:47]} exd4 {[%emt 0:02:44]} 15. Bg5 {[%emt 0:00:08]} Nh7 {[%emt 0:01:49]} 16. Bh4 {[%emt 0:02:24]} f5 {[%emt 0:01:56]} 17. Qd2 {[%emt 0:03:25]} f4 {[%emt 0:08:24]} 18. Rfe1 {[%emt 0:00:31]} O-O {[%emt 0:01:47]} 19. Bf1 {[%emt 0:07:00]} Bf5 {[%emt 0:07:51]} 20. b4 {[%emt 0:02:56]} b6 {[%emt 0:03:16]} 21. Rac1 {[%emt 0:03:23]} Rae8 {[%emt 0:06:13]} 22. c5 {[%emt 0:01:20]} bxc5 {[%emt 0:03:29]} 23. bxc5 {[%emt 0:00:05]} Qd7 {[%emt 0:04:04]} 24. Rxe8 {[%emt 0:04:33]} Qxe8 {[%emt 0:00:01]} 25. Re1 {[%emt 0:00:06]} Be6 {[%emt 0:04:32]} 26. Nb4 {[%emt 0:03:25]} Qd7 {[%emt 0:02:56]} 27. Nxc6 {[%emt 0:01:41]} Qxc6 {[%emt 0:00:01]} 28. Re5 {[%emt 0:00:21]} Rf5 {[%emt 0:01:12]} 29. Rxf5 {[%emt 0:00:19]} Bxf5 {[%emt 0:00:01]} 30. Qxf4 {[%emt 0:00:29]} Qxc5 {[%emt 0:00:25]} 31. Qh6 {[%emt 0:03:25]} Qb6 {[%emt 0:04:22]} 32. Qxh5 {[%emt 0:00:15]} Qe6 {[%emt 0:00:02]} 33. Bg3 {[%emt 0:07:31]} c5 {[%emt 0:02:16]} 34. Qh4 {[%emt 0:00:10]} Qf6 {[%emt 0:02:59]} 35. Qxf6 {[%emt 0:01:13]} Nxf6 {[%emt 0:00:02]} 36. f3 {[%emt 0:00:22]} gxf3 {[%emt 0:00:57]} 37. gxf3 {[%emt 0:00:05]} Kf7 {[%emt 0:00:37]} 38. Bd6 {[%emt 0:02:51]} Nd7 {[%emt 0:00:02]} 39. Kf2 {[%emt 0:01:22]} Ke6 {[%emt 0:00:11]} 40. Bc7 {[%emt 0:05:46]} Nf6 {[%emt 0:02:15]} 41. Ke1 {[%emt 0:31:21]} Nd5 {[%emt 0:37:17]} 42. Ba5 {[%emt 0:00:11]} Nf4 {[%emt 0:00:00]} 43. Kd2 {[%emt 0:00:00]} Kd7 {[%emt 0:00:00]} 44. h4 {[%emt 0:00:00]} Bg6 {[%emt 0:00:00]} 45. a3 {[%emt 0:00:00]} Kc8 {[%emt 0:00:00]} 46. Kc2 {[%emt 0:00:00]} c4 {[%emt 0:00:00]} 47. Bb4 {[%emt 0:00:00]} Kb7 {[%emt 0:00:00]} 48. Bc5 {[%emt 0:00:00]} Ne6 {[%emt 0:00:00]} 49. Bd6 {[%emt 0:00:00]} Kc6 {[%emt 0:00:00]} 50. Be5 {[%emt 0:00:00]} Kd5 {[%emt 0:07:17]} 51. f4 {[%emt 0:00:00]} Nc5 {[%emt 0:00:36]} 52. Bg2+ {[%emt 0:00:00]} Ke6 {[%emt 0:00:01]} 53. Bh3+ {[%emt 0:00:00]} Kd5 {[%emt 0:00:01]} 54. Bg2+ {[%emt 0:08:56]} Ke6 55. Bxd4 {[%emt 0:00:00]} Nxd3 {[%emt 0:02:00]} 56. Kc3 {[%emt 0:00:00]} Nxf4 {[%emt 0:00:11]} 57. Bf1 {[%emt 0:00:00]} a5 {[%emt 0:03:40]} 58. Kxc4 {[%emt 0:00:00]} Be8 {[%emt 0:01:09]} 59. Bb6 {[%emt 0:00:00]} Ng6 {[%emt 0:00:10]} 60. Bf2 {[%emt 0:00:00]} Ne5+ {[%emt 0:00:07]} 61. Kc5 {[%emt 0:00:00]} Nf3 {[%emt 0:00:52]} 62. Bh3+ {[%emt 0:00:00]} Ke5 {[%emt 0:00:15]} 63. Bg3+ {[%emt 0:00:00]} Ke4 {[%emt 0:00:13]} 64. Bg4 {[%emt 0:00:00]} Nd4 {[%emt 0:00:24]} 65. h5 {[%emt 0:00:00]} Nf5 {[%emt 0:00:43]} 66. Bc7 {[%emt 0:00:00]} a4 {[%emt 0:00:25]} 67. Bh2 {[%emt 0:00:00]} Nh6 {[%emt 0:00:36]} 68. Bd1 {[%emt 0:00:00]} Kf5 {[%emt 0:00:10]} 69. Kb4 {[%emt 0:00:03]} Ng4 {[%emt 0:00:02]} 70. Bg3 {[%emt 0:00:36]} Bxh5 {[%emt 0:00:47]} 71. Bxa4 {[%emt 0:00:06]} Ne3 {[%emt 0:00:34]} 72. Bd7+ {[%emt 0:00:26]} Ke4 {[%emt 0:00:57]} 73. Bc6+ {[%emt 0:00:41]} Kd3 {[%emt 0:00:57]} 74. a4 {[%emt 0:00:32]} Nc2+ {[%emt 0:00:29]} 75. Kc5 {[%emt 0:00:22]} Nd4 {[%emt 0:00:34]} 76. Bd5 {[%emt 0:00:26]} Bd1 {[%emt 0:00:12]} 77. a5 {[%emt 0:05:15]} Nb3+ {[%emt 0:00:10]} 78. Bxb3 {[%emt 0:00:05]} Bxb3 {[%emt 0:00:04]} 79. a6 {[%emt 0:00:03]} Bd1 {[%emt 0:00:08]} 80. a7 {[%emt 0:00:02]} Bf3 {[%emt 0:00:04]} 1/2-1/2

[Event "94th FRA-ch Accession 2019"]
[Site "Chartres"]
[Date "2019.08.24"]
[Round "8.5"]
[White "Duboue, Peio"]
[Black "Travadon, Loic"]
[Result "1-0"]
[ECO "B27"]
[WhiteElo "2413"]
[BlackElo "2399"]
[Annotator "NA"]
[PlyCount "165"]
[EventDate "2019.08.17"]
[EventType "swiss"]
[EventCountry "FRA"]
[SourceTitle "playchess.com"]
[Source "ChessBase"]
[SourceQuality "1"]
[TimeControl "40/5400+30:1800+30"]

1. e4 {[%emt 0:00:00]} c5 {[%emt 0:00:00]} 2. c3 {[%emt 0:00:00]} g6 {[%emt 0:00:00]} 3. Nf3 {[%emt 0:00:04]} Bg7 {[%emt 0:00:00]} 4. d4 {[%emt 0:00:04]} cxd4 {[%emt 0:00:00]} 5. cxd4 {[%emt 0:00:03]} d5 {[%emt 0:00:04]} 6. exd5 {[%emt 0:00:03]} Nf6 {[%emt 0:00:35]} 7. Bb5+ {[%emt 0:00:09]} Nbd7 {[%emt 0:00:37]} 8. d6 {[%emt 0:00:04]} a6 {[%emt 0:03:17]} 9. Bxd7+ {[%emt 0:02:29]} Qxd7 {[%emt 0:00:42]} 10. dxe7 {[%emt 0:00:09]} Qxe7+ {[%emt 0:00:09]} 11. Ne5 {[%emt 0:16:55]} O-O {[%emt 0:02:07]} 12. O-O {[%emt 0:00:05]} Nd5 {[%emt 0:01:38]} 13. Nc3 {[%emt 0:03:04]} Nxc3 {[%emt 0:00:42]} 14. bxc3 {[%emt 0:00:03]} Be6 {[%emt 0:00:14]} 15. Bf4 {[%emt 0:03:45]} Rac8 {[%emt 0:05:01]} 16. Qd2 {[%emt 0:01:45]} Qa3 {[%emt 0:02:09]} 17. Rfc1 {[%emt 0:08:16]} Rfd8 {[%emt 0:00:38]} 18. Nd3 {[%emt 0:06:55]} Bf5 {[%emt 0:13:08]} 19. Be5 {[%emt 0:02:42]} f6 {[%emt 0:02:36]} 20. Bf4 {[%emt 0:06:11]} Qa4 {[%emt 0:00:13]} 21. Nb2 {[%emt 0:03:09]} Qa3 {[%emt 0:03:05]} 22. Nd1 {[%emt 0:01:38]} g5 {[%emt 0:01:13]} 23. Bg3 {[%emt 0:01:26]} b5 {[%emt 0:04:23]} 24. h4 {[%emt 0:43:01]} h6 {[%emt 0:01:22]} 25. Ne3 {[%emt 0:00:00]} Bg6 26. f4 {[%emt 0:01:00]} gxf4 {[%emt 0:01:13]} 27. Bxf4 {[%emt 0:00:00]} h5 {[%emt 0:58:24]} 28. Nf1 {[%emt 0:00:00]} a5 29. Bh6 {[%emt 0:00:00]} Rd7 {[%emt 0:00:00]} 30. Bxg7 Rxg7 31. Qf4 {[%emt 0:02:30]} Kh7 {[%emt 0:00:00]} 32. Qxf6 {[%emt 0:00:00]} Rf8 {[%emt 0:00:00]} 33. Qe5 Rc8 {[%emt 0:00:00]} 34. Qf6 {[%emt 0:00:00]} Rf8 {[%emt 0:00:00]} 35. Qe5 {[%emt 0:00:00]} Qb2 {[%emt 0:00:00]} 36. Qe3 {[%emt 0:00:00]} Bb1 {[%emt 0:00:00]} 37. Ng3 Bg6 {[%emt 0:00:00]} 38. Nf1 {[%emt 0:00:00]} Bb1 {[%emt 0:00:00]} 39. Ng3 {[%emt 0:00:00]} Rxg3 {[%emt 0:00:00]} 40. Qxg3 {[%emt 0:00:00]} Qxc1+ {[%emt 0:00:00]} 41. Kh2 {[%emt 0:35:00]} Rf7 {[%emt 0:00:00]} 42. Qe5 {[%emt 0:00:00]} b4 {[%emt 0:13:16]} 43. cxb4 {[%emt 0:01:00]} axb4 {[%emt 0:24:44]} 44. Qxh5+ {[%emt 0:00:00]} Kg8 {[%emt 0:00:00]} 45. Qe5 {[%emt 0:00:00]} Qh6 {[%emt 0:00:00]} 46. Qg3+ {[%emt 0:00:00]} Bg6 {[%emt 0:00:00]} 47. Re1 {[%emt 0:00:00]} Rg7 {[%emt 0:00:00]} 48. Re6 {[%emt 0:00:00]} Kh7 {[%emt 0:00:00]} 49. d5 {[%emt 0:00:00]} Qd2 {[%emt 0:00:00]} 50. Qe5 {[%emt 0:00:00]} Qh6 {[%emt 0:00:00]} 51. Qd4 {[%emt 0:00:00]} Rf7 {[%emt 0:00:00]} 52. Qxb4 {[%emt 0:00:00]} Qh5 {[%emt 0:00:00]} 53. Qd4 {[%emt 0:05:00]} Bf5 {[%emt 0:00:00]} 54. Re5 {[%emt 0:00:00]} Qg6 {[%emt 0:00:00]} 55. d6 {[%emt 0:00:00]} Rg7 {[%emt 0:00:00]} 56. Qf2 {[%emt 0:00:00]} Be4 {[%emt 0:00:00]} 57. g3 {[%emt 0:00:00]} Kg8 {[%emt 0:00:00]} 58. Qf4 {[%emt 0:02:30]} Bb7 59. Qc4+ {[%emt 0:00:00]} Kh8 {[%emt 0:00:00]} 60. Rg5 {[%emt 0:00:00]} Qf6 {[%emt 0:00:00]} 61. Rh5+ {[%emt 0:00:00]} Rh7 {[%emt 0:00:00]} 62. Rxh7+ {[%emt 0:00:00]} Kxh7 {[%emt 0:00:00]} 63. Qc7+ {[%emt 0:00:00]} Kh6 {[%emt 0:00:00]} 64. Qxb7 {[%emt 0:00:00]} Qxd6 {[%emt 0:00:00]} 65. Qg2 {[%emt 0:00:00]} Qa3 {[%emt 0:00:00]} 66. Qc2 {[%emt 0:00:00]} Kh5 {[%emt 0:00:00]} 67. Qe2+ {[%emt 0:00:00]} Kh6 {[%emt 0:00:00]} 68. Qe6+ {[%emt 0:00:08]} Kh5 {[%emt 0:00:00]} 69. Qb3 {[%emt 0:01:00]} Qa6 {[%emt 0:00:00]} 70. Qf3+ {[%emt 0:00:51]} Kh6 {[%emt 0:00:00]} 71. a3 {[%emt 0:00:32]} Qb6 {[%emt 0:00:00]} 72. Kh3 {[%emt 0:00:23]} Qe6+ {[%emt 0:00:00]} 73. g4 {[%emt 0:00:13]} Qe1 {[%emt 0:00:00]} 74. g5+ {[%emt 0:01:15]} Kg7 {[%emt 0:00:00]} 75. h5 {[%emt 0:01:09]} Qe6+ {[%emt 0:00:00]} 76. Kh4 {[%emt 0:00:07]} Qe1+ {[%emt 0:00:00]} 77. Kh3 {[%emt 0:00:33]} Qe6+ {[%emt 0:00:00]} 78. Kg2 {[%emt 0:01:21]} Qa2+ {[%emt 0:00:00]} 79. Kg3 {[%emt 0:00:05]} Qd2 {[%emt 0:00:00]} 80. Qb7+ {[%emt 0:01:45]} Kg8 {[%emt 0:00:00]} 81. Qb8+ {[%emt 0:00:38]} Kh7 {[%emt 0:00:00]} 82. g6+ {[%emt 0:00:23]} Kg7 {[%emt 0:00:00]} 83. Qc7+ {[%emt 0:00:20]} 1-0

[Event "94th FRA-ch Accession 2019"]
[Site "Chartres"]
[Date "2019.08.24"]
[Round "8.6"]
[White "Maurizzi, Marc Andria"]
[Black "Di Nicolantonio, Lucas"]
[Result "0-1"]
[ECO "B50"]
[WhiteElo "2419"]
[BlackElo "2394"]
[Annotator "NA"]
[PlyCount "76"]
[EventDate "2019.08.17"]
[EventType "swiss"]
[EventCountry "FRA"]
[SourceTitle "playchess.com"]
[Source "ChessBase"]
[SourceQuality "1"]
[TimeControl "40/5400+30:1800+30"]

1. e4 {[%emt 0:00:00]} c5 {[%emt 0:00:00]} 2. Nf3 {[%emt 0:00:00]} d6 {[%emt 0:00:00]} 3. Nc3 {[%emt 0:00:00]} a6 {[%emt 0:01:38]} 4. g3 {[%emt 0:00:23]} Nc6 {[%emt 0:03:43]} 5. Bg2 {[%emt 0:00:38]} e5 {[%emt 0:09:13]} 6. O-O {[%emt 0:02:38]} g6 {[%emt 0:00:49]} 7. d3 {[%emt 0:03:20]} Bg7 {[%emt 0:01:05]} 8. Nh4 {[%emt 0:14:06]} Nh6 {[%emt 0:22:19]} 9. Bd2 {[%emt 0:10:45]} f6 {[%emt 0:09:24]} 10. f4 {[%emt 0:13:58]} exf4 {[%emt 0:00:22]} 11. Bxf4 {[%emt 0:01:44]} O-O {[%emt 0:05:45]} 12. Qd2 {[%emt 0:06:53]} Ng4 {[%emt 0:12:30]} 13. h3 {[%emt 0:02:44]} Nge5 {[%emt 0:00:07]} 14. Nd5 {[%emt 0:07:21]} Ne7 {[%emt 0:01:23]} 15. Nxe7+ {[%emt 0:08:06]} Qxe7 {[%emt 0:00:05]} 16. c3 {[%emt 0:07:20]} b5 {[%emt 0:03:51]} 17. b3 {[%emt 0:02:33]} Bb7 {[%emt 0:05:57]} 18. d4 {[%emt 0:00:21]} Nf7 {[%emt 0:00:28]} 19. Rfe1 {[%emt 0:01:52]} b4 {[%emt 0:00:51]} 20. cxb4 {[%emt 0:01:36]} cxd4 {[%emt 0:00:07]} 21. Rad1 {[%emt 0:00:21]} Qd7 {[%emt 0:06:05]} 22. Qxd4 {[%emt 0:01:33]} g5 {[%emt 0:00:22]} 23. Bxd6 {[%emt 0:00:47]} Qxd6 {[%emt 0:06:32]} 24. Qxd6 {[%emt 0:00:10]} Nxd6 {[%emt 0:00:04]} 25. Rxd6 {[%emt 0:00:20]} gxh4 {[%emt 0:00:06]} 26. Rb6 {[%emt 0:01:09]} Rab8 {[%emt 0:02:46]} 27. gxh4 {[%emt 0:00:19]} f5 {[%emt 0:00:18]} 28. Rd6 {[%emt 0:03:51]} fxe4 {[%emt 0:00:52]} 29. Bxe4 {[%emt 0:00:23]} Bc3 {[%emt 0:01:52]} 30. Re2 {[%emt 0:02:46]} Bxb4 {[%emt 0:00:19]} 31. Bxh7+ {[%emt 0:00:12]} Kh8 {[%emt 0:01:35]} 32. Rh6 {[%emt 0:00:37]} Kg7 {[%emt 0:01:34]} 33. Rh5 {[%emt 0:00:04]} Bf3 {[%emt 0:00:26]} 34. Rg5+ {[%emt 0:00:17]} Kxh7 {[%emt 0:00:09]} 35. Re6 {[%emt 0:00:02]} Rbe8 {[%emt 0:01:46]} 36. Rxa6 {[%emt 0:01:27]} Re1+ {[%emt 0:00:05]} 37. Kh2 {[%emt 0:00:02]} Rh1+ {[%emt 0:00:09]} 38. Kg3 {[%emt 0:00:09]} Be1# {[%emt 0:00:00]} 0-1

[Event "94th FRA-ch Accession 2019"]
[Site "Chartres"]
[Date "2019.08.25"]
[Round "9.1"]
[White "Duboue, Peio"]
[Black "Demuth, Adrien"]
[Result "1/2-1/2"]
[ECO "B22"]
[WhiteElo "2413"]
[BlackElo "2495"]
[Annotator "ChessBase"]
[PlyCount "106"]
[EventDate "2019.08.17"]
[EventType "swiss"]
[EventCountry "FRA"]
[SourceTitle "playchess.com"]
[Source "ChessBase"]
[SourceQuality "1"]
[TimeControl "40/5400+30:1800+30"]

1. e4 {[%emt 0:00:00]} c5 {[%emt 0:00:00]} 2. c3 {[%emt 0:00:00]} d5 {[%emt 0:00:14]} 3. exd5 {[%emt 0:00:00]} Qxd5 {[%emt 0:00:04]} 4. d4 {[%emt 0:00:00]} Nc6 {[%emt 0:00:14]} 5. Nf3 {[%emt 0:00:01]} Bf5 {[%emt 0:00:15]} 6. Be3 {[%emt 0:00:31]} Nf6 {[%emt 0:00:06]} 7. Na3 {[%emt 0:03:58]} e6 {[%emt 0:00:30]} 8. Qa4 {[%emt 0:04:18]} cxd4 {[%emt 0:00:40]} 9. Nb5 {[%emt 0:03:36]} O-O-O {[%emt 0:01:48]} 10. Nbxd4 {[%emt 0:01:37]} Nxd4 {[%emt 0:00:33]} 11. Qxd4 {[%emt 0:00:14]} a6 {[%emt 0:00:06]} 12. Ne5 {[%emt 0:09:15]} Bg6 {[%emt 0:01:49]} 13. Be2 {[%emt 0:14:01]} Bd6 {[%emt 0:14:00]} 14. Nxg6 {[%emt 0:03:00]} hxg6 {[%emt 0:00:09]} 15. Bf3 {[%emt 0:04:13]} Qxd4 {[%emt 0:16:47]} 16. Bxd4 {[%emt 0:00:10]} e5 {[%emt 0:01:34]} 17. Bb6 {[%emt 0:00:45]} Bc7 {[%emt 0:01:03]} 18. Be3 {[%emt 0:11:14]} Nd5 {[%emt 0:13:46]} 19. Bxd5 {[%emt 0:04:25]} Rxd5 {[%emt 0:00:06]} 20. Rd1 {[%emt 0:00:08]} Rxd1+ {[%emt 0:14:43]} 21. Kxd1 {[%emt 0:00:09]} Kd7 {[%emt 0:00:52]} 22. h3 {[%emt 0:01:10]} Kc6 {[%emt 0:01:16]} 23. Kc2 {[%emt 0:00:23]} Bb6 {[%emt 0:00:39]} 24. Bxb6 {[%emt 0:00:53]} Kxb6 {[%emt 0:00:27]} 25. Rd1 {[%emt 0:00:07]} Kc7 {[%emt 0:00:36]} 26. Rd5 {[%emt 0:06:51]} f6 {[%emt 0:00:48]} 27. c4 {[%emt 0:01:44]} Rh4 {[%emt 0:00:34]} 28. b3 {[%emt 0:05:13]} g5 {[%emt 0:02:16]} 29. f3 {[%emt 0:01:22]} e4 {[%emt 0:04:02]} 30. Rf5 {[%emt 0:01:37]} exf3 {[%emt 0:00:27]} 31. Rxf3 {[%emt 0:00:20]} Rd4 {[%emt 0:11:05]} 32. Re3 {[%emt 0:02:38]} Kc6 {[%emt 0:03:08]} 33. g3 {[%emt 0:08:31]} Rd8 {[%emt 0:01:13]} 34. g4 {[%emt 0:06:03]} Rd4 {[%emt 0:04:42]} 35. Kc3 {[%emt 0:05:01]} Rf4 {[%emt 0:01:06]} 36. Kb4 {[%emt 0:00:40]} Rd4 {[%emt 0:03:47]} 37. a4 {[%emt 0:01:02]} g6 {[%emt 0:00:57]} 38. a5 {[%emt 0:03:00]} f5 {[%emt 0:00:26]} 39. gxf5 {[%emt 0:00:39]} gxf5 {[%emt 0:00:02]} 40. Re8 {[%emt 0:00:36]} Rd3 {[%emt 0:02:06]} 41. Rg8 {[%emt 0:01:49]} Rg3 {[%emt 0:12:55]} 42. Rf8 {[%emt 0:02:44]} f4 {[%emt 0:00:25]} 43. h4 {[%emt 0:00:27]} gxh4 {[%emt 0:00:36]} 44. Rxf4 {[%emt 0:00:17]} h3 {[%emt 0:00:20]} 45. Rh4 {[%emt 0:00:04]} Rf3 {[%emt 0:04:05]} 46. Ka4 {[%emt 0:02:52]} Rc3 {[%emt 0:00:45]} 47. Kb4 {[%emt 0:06:04]} Rf3 {[%emt 0:00:16]} 48. Rh6+ {[%emt 0:00:03]} Kc7 {[%emt 0:00:28]} 49. c5 {[%emt 0:03:23]} Rg3 {[%emt 0:01:39]} 50. Kc4 {[%emt 0:02:57]} Rg4+ {[%emt 0:00:20]} 51. Kc3 {[%emt 0:01:05]} Rg3+ {[%emt 0:00:12]} 52. Kc4 {[%emt 0:00:17]} Rg4+ {[%emt 0:00:03]} 53. Kd5 {[%emt 0:01:40]} Rg5+ {[%emt 0:00:06]} 1/2-1/2

[Event "94th FRA-ch Accession 2019"]
[Site "Chartres"]
[Date "2019.08.25"]
[Round "9.2"]
[White "Lamard, Guillaume"]
[Black "Di Nicolantonio, Lucas"]
[Result "1/2-1/2"]
[ECO "B07"]
[WhiteElo "2419"]
[BlackElo "2394"]
[Annotator "ChessBase"]
[PlyCount "81"]
[EventDate "2019.08.17"]
[EventType "swiss"]
[EventCountry "FRA"]
[SourceTitle "playchess.com"]
[Source "ChessBase"]
[SourceQuality "1"]
[TimeControl "40/5400+30:1800+30"]

1. e4 {[%emt 0:00:00]} g6 {[%emt 0:00:15]} 2. d4 {[%emt 0:00:03]} Bg7 {[%emt 0:00:08]} 3. Nf3 {[%emt 0:00:05]} d6 {[%emt 0:00:30]} 4. c3 {[%emt 0:00:11]} Nf6 {[%emt 0:02:56]} 5. Bd3 {[%emt 0:01:51]} O-O {[%emt 0:00:17]} 6. O-O {[%emt 0:00:11]} Nc6 {[%emt 0:02:00]} 7. h3 {[%emt 0:00:05]} e5 {[%emt 0:00:24]} 8. Re1 {[%emt 0:00:05]} h6 {[%emt 0:06:35]} 9. Na3 {[%emt 0:00:12]} Nd7 {[%emt 0:09:46]} 10. Nc2 {[%emt 0:03:13]} a5 {[%emt 0:06:49]} 11. Bb5 {[%emt 0:04:13]} Kh8 {[%emt 0:19:54]} 12. dxe5 {[%emt 0:08:19]} dxe5 {[%emt 0:01:23]} 13. b3 {[%emt 0:02:07]} f5 {[%emt 0:08:29]} 14. Ba3 {[%emt 0:03:54]} Re8 {[%emt 0:00:15]} 15. exf5 {[%emt 0:18:22]} gxf5 {[%emt 0:00:13]} 16. Ne3 {[%emt 0:04:00]} Nb6 {[%emt 0:09:25]} 17. Qxd8 {[%emt 0:02:47]} Rxd8 {[%emt 0:00:05]} 18. Nh4 {[%emt 0:03:03]} e4 {[%emt 0:03:52]} 19. Rad1 {[%emt 0:01:48]} Bxc3 {[%emt 0:12:09]} 20. Rxd8+ {[%emt 0:04:55]} Nxd8 {[%emt 0:00:05]} 21. Rc1 {[%emt 0:01:31]} Bf6 {[%emt 0:00:16]} 22. Nhxf5 {[%emt 0:00:49]} c6 {[%emt 0:01:27]} 23. Bf1 {[%emt 0:01:15]} Nf7 {[%emt 0:04:34]} 24. Ng3 {[%emt 0:01:20]} a4 {[%emt 0:02:17]} 25. Bc5 {[%emt 0:01:58]} axb3 {[%emt 0:00:16]} 26. axb3 {[%emt 0:00:13]} Nd7 {[%emt 0:00:12]} 27. Bb4 {[%emt 0:00:25]} Ng5 {[%emt 0:02:45]} 28. h4 {[%emt 0:02:36]} Nf7 {[%emt 0:00:13]} 29. Nxe4 {[%emt 0:02:07]} Bxh4 {[%emt 0:00:06]} 30. Bc3+ {[%emt 0:03:06]} Kh7 {[%emt 0:04:48]} 31. f4 {[%emt 0:06:06]} Nb6 {[%emt 0:01:18]} 32. Bd4 {[%emt 0:04:38]} Bd8 {[%emt 0:01:01]} 33. Nc5 {[%emt 0:03:06]} Nd7 {[%emt 0:00:04]} 34. Bd3+ {[%emt 0:04:49]} Kg8 {[%emt 0:00:05]} 35. Nc4 {[%emt 0:02:32]} Nxc5 {[%emt 0:00:28]} 36. Bxc5 {[%emt 0:00:03]} Bg4 {[%emt 0:01:41]} 37. Re1 {[%emt 0:02:06]} Bf6 {[%emt 0:00:08]} 38. Re3 {[%emt 0:01:58]} Rd8 {[%emt 0:00:00]} 39. Bg6 {[%emt 0:02:42]} Kg7 {[%emt 0:01:44]} 40. Bxf7 {[%emt 0:01:45]} Kxf7 {[%emt 0:00:14]} 41. Ne5+ {[%emt 0:30:37]} 1/2-1/2